bitfinex-derivatives/quotes_BTCF0:USTF0_20220103
["timestamp","ask_amount","ask_price","bid_price","bid_amount"]
[1641194384884,0.09065177,46919.0,46910.0,0.12085875]
[1641194385087,0.20965177,46919.0,46912.0,0.12085875]
[1641194385288,0.09065177,46915.0,46912.0,0.12085875]
[1641194385887,0.09065177,46918.0,46912.0,0.12085875]
[1641194387092,0.15465177,46918.0,46912.0,0.182]
[1641194387291,0.15465177,46918.0,46913.0,0.12085875]
[1641194387593,1.44984228,46916.0,46913.0,0.4821039]
[1641194388191,1.44984228,46916.0,46913.0,0.36124515]
[1641194389095,1.62284228,46916.0,46913.0,0.54724515]
[1641194389895,0.09065177,46915.0,46913.0,0.54724515]
[1641194390499,0.09065177,46915.0,46913.0,0.36124515]
[1641194391097,0.09065177,46915.0,46913.0,0.54924515]
[1641194391505,1.44984228,46916.0,46913.0,0.54924515]
[1641194392505,1.44984228,46916.0,46913.0,0.36124515]
[1641194393106,1.44984228,46916.0,46913.0,0.55324515]
[1641194394311,1.44984228,46917.0,46913.0,0.55324515]
[1641194394609,1.44984228,46917.0,46913.0,0.36124515]
[1641194395108,1.44984228,46917.0,46913.0,0.54924515]
[1641194395811,1.44984228,46917.0,46914.0,0.36124515]
[1641194397111,1.44984228,46917.0,46914.0,0.54624515]
[1641194398411,1.44984228,46917.0,46914.0,0.36124515]
[1641194399214,1.44984228,46917.0,46914.0,0.54724515]
[1641194400517,1.44984228,46917.0,46914.0,0.36124515]
[1641194401116,1.44984228,46917.0,46914.0,0.54724515]
[1641194402419,1.44984228,46917.0,46914.0,0.36124515]
[1641194403120,1.44984228,46917.0,46914.0,0.54724515]
[1641194404222,1.44984228,46917.0,46914.0,0.186]
[1641194404621,1.44984228,46917.0,46913.0,0.36124515]
[1641194405124,1.44984228,46917.0,46913.0,0.54724515]
[1641194405523,1.44984228,46917.0,46914.0,0.12085061]
[1641194406723,1.44984228,46917.0,46914.0,0.48209576]
[1641194407223,1.44984228,46917.0,46914.0,0.54824515]
[1641194408525,1.44984228,46917.0,46914.0,0.36124515]
[1641194408925,1.44984228,46917.0,46914.0,0.60325681]
[1641194409127,1.44984228,46917.0,46914.0,0.79025681]
[1641194410528,1.44984228,46917.0,46914.0,0.60325681]
[1641194411127,1.44984228,46917.0,46914.0,0.78825681]
[1641194411530,1.44984228,46916.0,46914.0,0.78825681]
[1641194412130,1.44984228,46917.0,46914.0,0.78825681]
[1641194412531,1.44984228,46917.0,46914.0,0.60325681]
[1641194413031,1.44984228,46916.0,46915.0,0.42630132]
[1641194415135,1.44984228,46916.0,46915.0,0.62130132]
[1641194416638,1.44984228,46916.0,46915.0,0.42630132]
[1641194417239,1.44984228,46916.0,46915.0,0.195]
[1641194418541,1.44984228,46916.0,46913.0,0.36124515]
[1641194419145,1.44984228,46914.0,46913.0,0.195]
[1641194419745,1.44984228,46915.0,46913.0,0.195]
[1641194420746,1.44984228,46915.0,46912.0,0.36124515]
[1641194421148,1.44984228,46915.0,46913.0,0.177]
[1641194421546,0.18,46918.0,46913.0,0.177]
[1641194421547,1.44984228,46914.0,46913.0,0.177]
[1641194422346,0.18,46918.0,46913.0,0.177]
[1641194422547,0.09065177,46917.0,46910.0,0.36124515]
[1641194423149,0.09065177,46917.0,46910.0,0.53324515]
[1641194423347,0.18,46913.0,46910.0,0.53324515]
[1641194423546,0.06725,46913.0,46910.0,0.53324515]
[1641194423746,1.45059388,46912.0,46910.0,0.53324515]
[1641194423947,1.63059388,46912.0,46910.0,0.53324515]
[1641194424347,0.18,46912.0,46910.0,0.53324515]
[1641194424648,0.27065177,46912.0,46905.0,0.36124515]
[1641194425158,0.45665177,46912.0,46905.0,0.52424515]
[1641194425961,1.4507608,46907.0,46905.0,0.163]
[1641194426660,1.4507608,46908.0,46905.0,0.36124515]
[1641194427259,1.6347608,46908.0,46905.0,0.54124515]
[1641194427460,1.4507608,46907.0,46905.0,0.54124515]
[1641194428265,1.54141257,46907.0,46905.0,0.18]
[1641194428461,1.54141257,46907.0,46904.0,0.36124515]
[1641194429262,1.54141257,46907.0,46904.0,0.55124515]
[1641194429863,1.4507608,46907.0,46904.0,0.55124515]
[1641194430663,1.4507608,46907.0,46904.0,0.36124515]
[1641194431565,1.4507608,46907.0,46904.0,0.55124515]
[1641194432566,1.4507608,46907.0,46904.0,0.36124515]
[1641194433167,1.4507608,46907.0,46904.0,0.55024515]
[1641194433968,1.4507608,46906.0,46904.0,0.55024515]
[1641194434569,1.4507608,46906.0,46904.0,0.36124515]
[1641194435171,1.4507608,46906.0,46904.0,0.55524515]
[1641194435374,1.4507608,46907.0,46905.0,0.36124515]
[1641194436175,1.4507608,46907.0,46904.0,0.55524515]
[1641194436574,1.4507608,46907.0,46904.0,0.36124515]
[1641194437074,1.4507608,46907.0,46905.0,0.36124515]
[1641194439177,0.09065177,46910.0,46905.0,0.181]
[1641194440478,0.09065177,46910.0,46903.0,0.14033567]
[1641194440680,0.16455177,46910.0,46903.0,0.14033567]
[1641194441280,0.16455177,46910.0,46903.0,0.32633567]
[1641194441979,0.84529264,46904.0,46903.0,0.32633567]
[1641194442579,0.84529264,46904.0,46903.0,0.14033567]
[1641194443280,0.84529264,46904.0,46903.0,0.33233567]
[1641194444186,0.09065177,46909.0,46903.0,0.33233567]
[1641194444582,0.09065177,46909.0,46903.0,0.14033567]
[1641194445183,0.09065177,46909.0,46903.0,0.32833567]
[1641194446684,0.09065177,46909.0,46903.0,0.14033567]
[1641194447185,0.09065177,46909.0,46903.0,0.32233567]
[1641194448490,0.84528683,46904.0,46903.0,0.32233567]
[1641194448791,0.84528683,46904.0,46903.0,0.14033567]
[1641194449189,0.84528683,46904.0,46903.0,0.33333567]
[1641194450591,0.84528683,46904.0,46903.0,0.14033567]
[1641194451192,0.84528683,46904.0,46903.0,0.33333567]
[1641194452692,0.84528683,46904.0,46903.0,0.14033567]
[1641194453292,0.84528683,46904.0,46903.0,0.33533567]
[1641194455196,0.84528683,46904.0,46903.0,0.33733567]
[1641194455697,0.84528683,46905.0,46903.0,0.33733567]
[1641194456597,0.84528683,46905.0,46903.0,0.14033567]
[1641194457299,0.84528683,46905.0,46903.0,0.33633567]
[1641194459211,0.84528683,46905.0,46903.0,0.33133567]
[1641194460216,0.84528683,46904.0,46903.0,0.33133567]
[1641194460613,0.84528683,46904.0,46903.0,0.14033567]
[1641194461216,0.84528683,46904.0,46903.0,0.33133567]
[1641194462615,0.84528683,46904.0,46903.0,0.14033567]
[1641194463314,0.84528683,46904.0,46903.0,0.33033567]
[1641194464519,0.84528683,46904.0,46903.0,0.14033567]
[1641194465219,0.84528683,46904.0,46903.0,0.32933567]
[1641194465418,0.09065177,46910.0,46903.0,0.32933567]
[1641194465618,1.4507608,46907.0,46903.0,0.93250665]
[1641194466318,1.4507608,46907.0,46905.0,0.36046486]
[1641194467223,1.4507608,46907.0,46905.0,0.54846486]
[1641194468618,1.4507608,46907.0,46905.0,0.36046486]
[1641194469219,1.4507608,46907.0,46905.0,0.54846486]
[1641194470721,1.4507608,46907.0,46905.0,0.36046486]
[1641194471323,1.4507608,46907.0,46905.0,0.54846486]
[1641194472722,1.4507608,46907.0,46905.0,0.36046486]
[1641194473323,1.4507608,46907.0,46905.0,0.54946486]
[1641194474623,1.4507608,46907.0,46905.0,0.36046486]
[1641194475224,1.4507608,46907.0,46905.0,0.55046486]
[1641194476425,0.09065177,46910.0,46906.0,0.189794]
[1641194476725,0.14033567,46918.0,46908.0,0.42636026]
[1641194477127,0.0213225,46920.0,46912.0,0.14033567]
[1641194477929,0.02132046,46924.0,46912.0,0.14033567]
[1641194478329,1.1103,46925.0,46912.0,0.14033567]
[1641194478729,1.1103,46925.0,46912.0,0.32033567]
[1641194479130,1.1103,46925.0,46914.0,0.36046486]
[1641194479430,1.1103,46925.0,46914.0,0.45060199]
[1641194480133,1.1103,46925.0,46915.0,0.36046486]
[1641194480333,0.18,46927.0,46915.0,0.36046486]
[1641194480534,0.14033567,46928.0,46915.0,0.36046486]
[1641194481133,0.32033567,46928.0,46915.0,0.36046486]
[1641194481332,0.32033567,46928.0,46915.0,0.54346486]
[1641194481733,0.38531969,46928.0,46915.0,0.54346486]
[1641194482135,1.4505774,46918.0,46916.0,0.36046486]
[1641194482636,1.4505774,46917.0,46915.0,0.54346486]
[1641194483134,1.4505774,46917.0,46915.0,0.36046486]
[1641194483335,1.4505774,46917.0,46915.0,0.55546486]
[1641194484138,0.14033567,46928.0,46916.0,0.4360844]
[1641194484437,0.14033567,46928.0,46916.0,0.84018552]
[1641194485240,0.14033567,46928.0,46919.0,0.14033567]
[1641194485438,0.14033567,46928.0,46920.0,0.36046486]
[1641194487340,0.14033567,46928.0,46920.0,0.54246486]
[1641194487742,0.18,46927.0,46920.0,0.54246486]
[1641194488144,0.18,46927.0,46920.0,0.182]
[1641194488642,0.18,46927.0,46919.0,0.14033567]
[1641194488841,0.14033567,46928.0,46919.0,0.14033567]
[1641194489044,0.18,46927.0,46919.0,0.14033567]
[1641194489444,0.18,46927.0,46919.0,0.32333567]
[1641194490043,1.45050248,46920.0,46919.0,0.32333567]
[1641194490546,1.45050248,46920.0,46919.0,0.14033567]
[1641194491347,0.96978429,46920.0,46919.0,0.50933567]
[1641194491548,0.02131614,46934.0,46923.0,0.14998107]
[1641194491746,0.02131614,46934.0,46924.0,0.009794]
[1641194492345,0.20131614,46934.0,46924.0,0.009794]
[1641194492561,0.02131614,46934.0,46924.0,0.009794]
[1641194492746,0.20131614,46934.0,46924.0,0.009794]
[1641194492947,0.02131614,46934.0,46925.0,0.36046486]
[1641194493150,0.02131614,46934.0,46929.0,0.14033567]
[1641194494448,0.20131614,46934.0,46929.0,0.14033567]
[1641194494647,0.02131614,46934.0,46929.0,0.14033567]
[1641194495248,0.8439151,46932.0,46929.0,0.14033567]
[1641194495447,0.8439151,46932.0,46929.0,0.32833567]
[1641194496649,0.8439151,46932.0,46929.0,0.14033567]
[1641194497152,0.8439151,46931.0,46929.0,0.14033567]
[1641194497352,0.8439151,46931.0,46929.0,0.32933567]
[1641194498753,0.8439151,46931.0,46929.0,0.14033567]
[1641194499155,0.8439151,46932.0,46929.0,0.14033567]
[1641194499354,0.8439151,46932.0,46929.0,0.33333567]
[1641194500569,0.8439151,46932.0,46929.0,0.14033567]
[1641194501369,0.8439151,46932.0,46929.0,0.33233567]
[1641194502672,0.8439151,46932.0,46929.0,0.14033567]
[1641194503375,0.8439151,46932.0,46929.0,0.33233567]
[1641194504774,0.8439151,46932.0,46929.0,0.14033567]
[1641194505377,0.8439151,46932.0,46929.0,0.33233567]
[1641194506678,0.8439151,46932.0,46929.0,0.14033567]
[1641194507379,0.8439151,46932.0,46929.0,0.33233567]
[1641194508284,0.8439151,46932.0,46929.0,0.192]
[1641194508484,0.02131789,46930.0,46929.0,0.192]
[1641194508686,0.02131789,46930.0,46913.0,0.9251]
[1641194508983,0.18,46924.0,46913.0,0.9251]
[1641194509283,0.23522567,46924.0,46912.0,0.9271281]
[1641194509883,0.23522567,46924.0,46913.0,0.499829]
[1641194510283,0.23522567,46924.0,46917.0,0.42627597]
[1641194510684,0.23522567,46924.0,46912.0,0.14033567]
[1641194511289,0.23522567,46924.0,46918.0,0.14033567]
[1641194511483,0.42422567,46924.0,46918.0,0.14033567]
[1641194512785,1.44674881,46922.0,46918.0,0.14033567]
[1641194512986,1.44674881,46922.0,46919.0,0.36046486]
[1641194513389,1.63674881,46922.0,46919.0,0.36046486]
[1641194513689,0.19,46922.0,46920.0,0.36046486]
[1641194514492,0.19,46922.0,46921.0,0.2013135]
[1641194514690,1.44674881,46922.0,46921.0,0.2013135]
[1641194514891,1.44674881,46922.0,46921.0,0.5229465]
[1641194515292,1.44674881,46927.0,46921.0,1.36618132]
[1641194515492,1.44674881,46927.0,46921.0,1.56118132]
[1641194516291,1.44674881,46928.0,46926.0,0.35896772]
[1641194517391,1.63674881,46928.0,46926.0,0.35896772]
[1641194518792,1.44674881,46928.0,46926.0,0.35896772]
[1641194519494,1.63874881,46928.0,46926.0,0.35896772]
[1641194519994,1.63874881,46928.0,46925.0,0.35896772]
[1641194520595,1.63874881,46928.0,46926.0,0.35896772]
[1641194520893,1.44674881,46928.0,46926.0,0.35896772]
[1641194521395,1.63974881,46928.0,46926.0,0.35896772]
[1641194521797,0.193,46928.0,46926.0,0.35896772]
[1641194522796,1.44674881,46929.0,46926.0,0.35896772]
[1641194523397,1.44674881,46928.0,46926.0,0.35896772]
[1641194523599,1.44674881,46928.0,46925.0,0.35896772]
[1641194523998,0.187,46929.0,46925.0,0.35896772]
[1641194524799,0.14033567,46933.0,46924.0,1.06649663]
[1641194525100,0.14033567,46933.0,46924.0,0.35896772]
[1641194525400,0.32833567,46933.0,46924.0,0.35896772]
[1641194525600,1.45031448,46928.0,46925.0,0.35896772]
[1641194526400,1.45031448,46927.0,46925.0,0.35896772]
[1641194527402,1.63531448,46927.0,46925.0,0.49696772]
[1641194527602,1.45031448,46926.0,46925.0,0.138]
[1641194528302,1.63531448,46927.0,46925.0,0.138]
[1641194528802,1.45031448,46927.0,46924.0,0.35896772]
[1641194529405,1.63531448,46927.0,46924.0,0.51396772]
[1641194529904,1.63531448,46927.0,46925.0,0.35896772]
[1641194530704,0.185,46927.0,46925.0,0.35896772]
[1641194530907,1.45031448,46928.0,46925.0,0.35896772]
[1641194531404,1.63531448,46928.0,46925.0,0.41396772]
[1641194532310,1.45031448,46927.0,46925.0,0.41396772]
[1641194532705,1.45031448,46927.0,46925.0,0.35896772]
[1641194533507,1.64131448,46927.0,46925.0,0.47796772]
[1641194534309,0.01401545,46927.0,46926.0,0.009794]
[1641194534508,0.01401545,46927.0,46926.0,0.328036]
[1641194534811,1.45031448,46928.0,46926.0,0.328036]
[1641194535008,1.45031448,46929.0,46926.0,0.328036]
[1641194535208,1.45031448,46929.0,46926.0,0.68700372]
[1641194535408,1.45031448,46929.0,46928.0,0.14033567]
[1641194535809,1.45031448,46931.0,46928.0,0.14033567]
[1641194536908,1.45031448,46931.0,46929.0,0.320688]
[1641194537512,1.45031448,46931.0,46929.0,0.514688]
[1641194538110,1.45031448,46932.0,46929.0,0.514688]
[1641194538709,1.45031448,46932.0,46929.0,0.320688]
[1641194539112,1.45031448,46931.0,46929.0,0.320688]
[1641194539511,1.45031448,46931.0,46929.0,0.513688]
[1641194539811,0.14033567,46939.0,46930.0,0.33397231]
[1641194541512,0.30133567,46939.0,46930.0,0.51197231]
[1641194542719,0.14033567,46939.0,46930.0,0.33397231]
[1641194543519,0.31633567,46939.0,46930.0,0.51197231]
[1641194544721,0.14033567,46939.0,46930.0,0.33397231]
[1641194545420,0.15733567,46939.0,46930.0,0.51097231]
[1641194546023,0.18,46934.0,46932.0,0.42614634]
[1641194546420,0.18,46934.0,46930.0,0.177]
[1641194546622,0.14033567,46939.0,46928.0,0.49930339]
[1641194547222,0.14033567,46939.0,46928.0,0.14033567]
[1641194547423,0.14033567,46934.0,46928.0,0.32233567]
[1641194548725,0.14033567,46934.0,46928.0,0.14033567]
[1641194549530,0.14033567,46934.0,46928.0,0.32633567]
[1641194551433,0.14033567,46934.0,46928.0,0.51233567]
[1641194552331,0.14033567,46934.0,46932.0,0.2482276]
[1641194552531,0.14033567,46934.0,46932.0,0.3129276]
[1641194553332,0.14033567,46934.0,46932.0,0.0647]
[1641194553531,0.14033567,46934.0,46932.0,0.189]
[1641194554732,0.14033567,46934.0,46930.0,0.59480395]
[1641194555133,0.14033567,46934.0,46930.0,0.23600854]
[1641194555532,0.14033567,46934.0,46930.0,0.42500854]
[1641194556436,0.14033567,46934.0,46931.0,0.320827]
[1641194556634,1.4501713,46932.0,46931.0,0.320827]
[1641194557238,1.4501713,46932.0,46930.0,0.42500854]
[1641194557535,1.4501713,46932.0,46931.0,0.193]
[1641194558842,1.4501713,46932.0,46930.0,0.59480395]
[1641194559242,1.4501713,46932.0,46930.0,0.76706726]
[1641194559441,1.4501713,46933.0,46930.0,0.96006726]
[1641194559642,1.4501713,46933.0,46931.0,0.318216]
[1641194561444,1.4501713,46933.0,46931.0,0.510216]
[1641194562945,1.4501713,46933.0,46931.0,0.318216]
[1641194563543,1.4501713,46933.0,46931.0,0.511216]
[1641194564043,1.4501713,46933.0,46931.0,0.193]
[1641194564443,1.4501713,46933.0,46932.0,0.317931]
[1641194564843,1.4501713,46933.0,46930.0,0.84067726]
[1641194565344,1.4501713,46935.0,46930.0,0.48188185]
[1641194565545,1.4501713,46935.0,46930.0,0.67288185]
[1641194566746,1.4501713,46935.0,46930.0,0.48188185]
[1641194567246,1.4501713,46935.0,46931.0,0.320785]
[1641194568348,1.4501713,46935.0,46930.0,0.43787331]
[1641194568549,1.4501713,46935.0,46930.0,0.36426331]
[1641194568750,1.4501713,46936.0,46930.0,0.36426331]
[1641194568949,1.4501713,46936.0,46934.0,0.07374874]
[1641194569550,1.4501713,46936.0,46934.0,0.25774874]
[1641194570657,1.4501713,46936.0,46934.0,0.07374874]
[1641194571052,1.4501713,46935.0,46933.0,0.14033567]
[1641194571450,1.4501713,46935.0,46934.0,0.186]
[1641194571649,1.6301713,46935.0,46934.0,0.186]
[1641194571851,0.18,46935.0,46934.0,0.186]
[1641194572349,0.14033567,46939.0,46934.0,0.186]
[1641194573351,0.14033567,46939.0,46933.0,0.14033567]
[1641194573651,0.32033567,46939.0,46934.0,0.179]
[1641194573851,0.18,46937.0,46934.0,0.179]
[1641194574050,0.14033567,46939.0,46934.0,0.179]
[1641194574251,0.18,46937.0,46934.0,0.179]
[1641194574751,0.18,46937.0,46933.0,0.14033567]
[1641194575450,0.18,46937.0,46933.0,0.32533567]
[1641194576252,0.14033567,46939.0,46933.0,0.32533567]
[1641194576453,0.06,46937.0,46933.0,0.32533567]
[1641194576652,0.14033567,46939.0,46933.0,0.14033567]
[1641194577053,0.18,46937.0,46933.0,0.14033567]
[1641194577254,0.14033567,46939.0,46933.0,0.14033567]
[1641194577452,0.14033567,46939.0,46933.0,0.32233567]
[1641194577652,0.18,46937.0,46933.0,0.32233567]
[1641194578554,0.32033567,46939.0,46933.0,0.32233567]
[1641194578954,0.14033567,46939.0,46933.0,0.14033567]
[1641194579155,0.18,46937.0,46933.0,0.14033567]
[1641194579356,0.14033567,46939.0,46933.0,0.14033567]
[1641194579557,0.18,46935.0,46933.0,0.32233567]
[1641194579757,0.32033567,46939.0,46933.0,0.32233567]
[1641194579957,0.18,46937.0,46933.0,0.32233567]
[1641194580761,0.18,46937.0,46933.0,0.14033567]
[1641194581659,0.18,46937.0,46933.0,0.32533567]
[1641194581960,0.14033567,46939.0,46933.0,0.32533567]
[1641194582161,0.18,46937.0,46933.0,0.32533567]
[1641194582762,0.18,46937.0,46933.0,0.14033567]
[1641194583462,0.18,46937.0,46933.0,0.32533567]
[1641194584870,0.18,46937.0,46933.0,0.14033567]
[1641194585172,0.14033567,46939.0,46933.0,0.14033567]
[1641194585373,0.18,46937.0,46933.0,0.32533567]
[1641194585873,0.14033567,46939.0,46933.0,0.32533567]
[1641194586076,0.18,46937.0,46933.0,0.32533567]
[1641194586275,0.14033567,46939.0,46933.0,0.32533567]
[1641194586674,0.18,46937.0,46933.0,0.14033567]
[1641194587474,0.18,46937.0,46933.0,0.32533567]
[1641194589078,0.18,46937.0,46933.0,0.14033567]
[1641194589479,0.18,46937.0,46933.0,0.32533567]
[1641194590885,0.18,46937.0,46933.0,0.14033567]
[1641194591087,0.18,46934.0,46933.0,0.14033567]
[1641194591389,0.18,46934.0,46933.0,0.31733567]
[1641194592789,0.18,46934.0,46933.0,0.14033567]
[1641194593389,0.18,46934.0,46933.0,0.31233567]
[1641194594791,0.18,46934.0,46933.0,0.14033567]
[1641194595493,0.18,46934.0,46933.0,0.31433567]
[1641194596294,0.20131391,46938.0,46933.0,0.31433567]
[1641194596493,0.18,46934.0,46933.0,0.31433567]
[1641194596895,0.20131391,46938.0,46933.0,0.14033567]
[1641194597496,0.18,46934.0,46933.0,0.30833567]
[1641194597793,0.20131391,46938.0,46933.0,0.30833567]
[1641194598692,0.20131391,46938.0,46933.0,0.14033567]
[1641194599395,0.18,46934.0,46933.0,0.30933567]
[1641194600894,0.24432,46934.0,46933.0,0.14033567]
[1641194601495,0.24432,46934.0,46933.0,0.30933567]
[1641194602895,0.24432,46934.0,46933.0,0.14033567]
[1641194603395,0.24432,46934.0,46933.0,0.31133567]
[1641194604799,0.24432,46934.0,46933.0,0.14033567]
[1641194605397,0.06432,46934.0,46933.0,0.31033567]
[1641194605599,0.24432,46934.0,46933.0,0.31033567]
[1641194606301,0.06432,46934.0,46933.0,0.31033567]
[1641194606598,0.18,46934.0,46933.0,0.31033567]
[1641194606798,0.25389,46934.0,46933.0,0.14033567]
[1641194607400,0.25389,46934.0,46933.0,0.31133567]
[1641194608799,0.25389,46934.0,46933.0,0.14033567]
[1641194609399,0.25389,46934.0,46933.0,0.30933567]
[1641194610800,0.25389,46934.0,46933.0,0.14033567]
[1641194611400,0.25389,46934.0,46933.0,0.30933567]
[1641194611602,0.07389,46934.0,46933.0,0.30933567]
[1641194611800,0.02131391,46938.0,46933.0,0.30933567]
[1641194611801,0.06949,46935.0,46933.0,0.30933567]
[1641194612302,0.18,46934.0,46933.0,0.30933567]
[1641194612800,0.18,46934.0,46933.0,0.14033567]
[1641194613400,0.18,46934.0,46933.0,0.30933567]
[1641194613799,0.06949,46935.0,46933.0,0.30933567]
[1641194614700,0.06949,46935.0,46933.0,0.14033567]
[1641194615500,0.06949,46935.0,46933.0,0.30433567]
[1641194616703,0.09080545,46935.0,46933.0,0.14033567]
[1641194617303,0.27080545,46935.0,46933.0,0.14033567]
[1641194617503,0.27080545,46935.0,46933.0,0.30833567]
[1641194618503,0.09080545,46935.0,46933.0,0.30833567]
[1641194618903,0.09080545,46935.0,46933.0,0.14033567]
[1641194619404,0.18,46934.0,46933.0,0.30733567]
[1641194620209,0.09080545,46935.0,46933.0,0.30733567]
[1641194620808,0.09080545,46935.0,46933.0,0.14033567]
[1641194621409,0.09080545,46935.0,46933.0,0.30733567]
[1641194622811,0.02131545,46935.0,46933.0,0.14033567]
[1641194623511,0.02131545,46935.0,46933.0,0.30733567]
[1641194625314,0.02131545,46935.0,46933.0,0.14033567]
[1641194625512,0.02131545,46935.0,46933.0,0.30733567]
[1641194626812,0.02131545,46935.0,46933.0,0.14033567]
[1641194627413,0.02131545,46935.0,46933.0,0.30733567]
[1641194627714,0.20131545,46935.0,46933.0,0.30733567]
[1641194627917,0.02131545,46935.0,46933.0,0.30733567]
[1641194629516,0.02131545,46935.0,46933.0,0.32533567]
[1641194630118,0.02131545,46935.0,46933.0,0.185]
[1641194630921,0.02131545,46935.0,46929.0,0.14033567]
[1641194631518,0.02131545,46935.0,46929.0,0.32733567]
[1641194632121,1.44974549,46932.0,46929.0,0.32733567]
[1641194632926,1.44974549,46932.0,46929.0,0.14033567]
[1641194633429,1.44974549,46932.0,46929.0,0.33033567]
[1641194634828,1.44974549,46932.0,46929.0,0.14033567]
[1641194635429,1.44974549,46932.0,46929.0,0.33033567]
[1641194636730,1.44974549,46932.0,46929.0,0.14033567]
[1641194637531,1.02359744,46932.0,46929.0,0.39859567]
[1641194637732,1.02359744,46932.0,46930.0,0.18]
[1641194637932,1.02359744,46932.0,46929.0,0.39859567]
[1641194638733,1.02359744,46932.0,46929.0,0.20859567]
[1641194638942,0.14033567,46939.0,46929.0,0.56739108]
[1641194639442,0.14033567,46939.0,46929.0,0.75539108]
[1641194640748,0.14033567,46939.0,46929.0,0.56739108]
[1641194641347,0.18,46937.0,46929.0,0.56739108]
[1641194641545,0.18,46937.0,46929.0,0.75439108]
[1641194642146,0.18,46937.0,46929.0,0.39559567]
[1641194642546,0.14033567,46939.0,46929.0,0.39559567]
[1641194642746,1.44973971,46932.0,46929.0,0.39559567]
[1641194642948,1.44973971,46932.0,46929.0,0.20859567]
[1641194643446,1.44973971,46932.0,46929.0,0.39959567]
[1641194644847,1.44973971,46932.0,46929.0,0.20859567]
[1641194645047,1.44973971,46932.0,46929.0,0.14033567]
[1641194645449,1.44973971,46932.0,46929.0,0.33133567]
[1641194645748,1.44973971,46933.0,46929.0,0.69013108]
[1641194646353,1.44973971,46933.0,46929.0,0.33133567]
[1641194646849,1.44973971,46933.0,46929.0,0.14033567]
[1641194647450,1.44973971,46933.0,46929.0,0.33033567]
[1641194647852,1.44973971,46933.0,46929.0,0.68913108]
[1641194649350,1.44973971,46933.0,46929.0,0.49913108]
[1641194649551,1.44973971,46933.0,46929.0,0.68913108]
[1641194650853,1.44973971,46933.0,46929.0,0.14033567]
[1641194651454,1.44973971,46932.0,46929.0,0.33033567]
[1641194652851,1.44973971,46932.0,46929.0,0.14033567]
[1641194653452,1.44973971,46932.0,46929.0,0.32933567]
[1641194654956,1.44973971,46932.0,46929.0,0.14033567]
[1641194655557,1.44973971,46932.0,46929.0,0.32933567]
[1641194656955,1.44973971,46932.0,46929.0,0.14033567]
[1641194657558,1.44973971,46932.0,46929.0,0.32933567]
[1641194658858,1.44973971,46932.0,46929.0,0.14033567]
[1641194659463,1.44973971,46932.0,46929.0,0.32933567]
[1641194660960,1.44973971,46932.0,46929.0,0.14033567]
[1641194661361,1.44973971,46931.0,46929.0,0.14033567]
[1641194661560,1.44973971,46931.0,46929.0,0.32933567]
[1641194662062,0.14033567,46939.0,46929.0,0.32933567]
[1641194662063,1.44973971,46932.0,46929.0,0.32933567]
[1641194662964,1.44973971,46932.0,46929.0,0.14033567]
[1641194663667,1.44973971,46932.0,46929.0,0.32933567]
[1641194664970,1.44973971,46932.0,46929.0,0.14033567]
[1641194665569,1.44973971,46932.0,46929.0,0.32933567]
[1641194665869,1.44973971,46932.0,46929.0,0.68813108]
[1641194666472,1.44973971,46933.0,46929.0,0.68813108]
[1641194666972,1.44973971,46933.0,46929.0,0.49913108]
[1641194667674,1.44973971,46933.0,46929.0,0.68713108]
[1641194667874,1.44973971,46932.0,46929.0,0.68713108]
[1641194668578,1.44973971,46933.0,46929.0,0.68713108]
[1641194669179,1.44973971,46932.0,46929.0,0.49913108]
[1641194669676,1.44973971,46932.0,46929.0,0.68713108]
[1641194670980,1.44973971,46932.0,46929.0,0.49913108]
[1641194671582,1.44973971,46932.0,46929.0,0.68813108]
[1641194672487,1.44973971,46932.0,46930.0,0.18]
[1641194672697,1.44973971,46932.0,46930.0,0.30081877]
[1641194673097,1.44973971,46932.0,46931.0,0.12081877]
[1641194673599,1.10063971,46932.0,46930.0,0.26844]
[1641194673801,2.62220989,46951.0,46932.0,0.38578211]
[1641194673998,2.62220989,46951.0,46942.0,0.18]
[1641194674297,1.68550989,46951.0,46943.0,0.009794]
[1641194674497,1.68550989,46951.0,46945.0,0.18]
[1641194675200,1.68550989,46951.0,46950.0,0.28067134]
[1641194675397,0.3176202,46952.0,46950.0,0.28067134]
[1641194675598,0.02130618,46956.0,46950.0,0.28067134]
[1641194677100,0.02130618,46956.0,46955.0,0.14033567]
[1641194677601,0.02130618,46956.0,46955.0,0.30833567]
[1641194677803,0.20130618,46956.0,46955.0,0.30833567]
[1641194678002,0.02130618,46956.0,46955.0,0.30833567]
[1641194678401,0.02130618,46956.0,46955.0,0.29430211]
[1641194678601,0.20130618,46956.0,46955.0,0.29430211]
[1641194679101,0.20130618,46956.0,46955.0,0.12630211]
[1641194679703,0.39530618,46956.0,46955.0,0.12630211]
[1641194680905,0.20130618,46956.0,46955.0,0.12630211]
[1641194681309,0.02130618,46956.0,46955.0,0.12630211]
[1641194681708,0.21230618,46956.0,46955.0,0.12630211]
[1641194683510,0.02130618,46956.0,46955.0,0.12630211]
[1641194683709,0.20530618,46956.0,46955.0,0.12630211]
[1641194684911,0.02130618,46956.0,46955.0,0.12630211]
[1641194685713,0.20830618,46956.0,46955.0,0.12630211]
[1641194686514,0.20830618,46956.0,46955.0,0.1136719]
[1641194686915,0.02130618,46956.0,46955.0,0.1136719]
[1641194687615,0.20830618,46956.0,46955.0,0.1136719]
[1641194689018,0.02130618,46956.0,46955.0,0.1136719]
[1641194689720,0.20530618,46956.0,46955.0,0.1136719]
[1641194691020,0.02130618,46956.0,46955.0,0.1136719]
[1641194691621,0.20630618,46956.0,46955.0,0.1136719]
[1641194693021,0.02130618,46956.0,46955.0,0.1136719]
[1641194693622,0.20630618,46956.0,46955.0,0.1136719]
[1641194694522,0.20630618,46956.0,46955.0,0.10230472]
[1641194695021,0.02130618,46956.0,46955.0,0.10230472]
[1641194695624,0.21030618,46956.0,46955.0,0.10230472]
[1641194695825,0.189,46956.0,46955.0,0.10230472]
[1641194696927,0.02130437,46960.0,46955.0,0.10230472]
[1641194697729,0.21530437,46960.0,46955.0,0.10230472]
[1641194699131,0.02130437,46960.0,46955.0,0.10230472]
[1641194699730,0.21530437,46960.0,46955.0,0.10230472]
[1641194700731,0.194,46960.0,46955.0,0.10230472]
[1641194701134,0.02130199,46965.0,46955.0,0.10230472]
[1641194701332,0.02130199,46965.0,46962.0,0.14033567]
[1641194701834,0.21130199,46965.0,46962.0,0.14033567]
[1641194702733,0.33130199,46965.0,46962.0,0.12595102]
[1641194703134,0.14130199,46965.0,46962.0,0.12595102]
[1641194703734,0.33530199,46965.0,46962.0,0.12595102]
[1641194705035,0.02130199,46965.0,46962.0,0.12595102]
[1641194705938,0.21630199,46965.0,46962.0,0.12595102]
[1641194706944,0.18,46963.0,46962.0,0.12595102]